bitfinex/quotes_SOLUSD_20251204
["timestamp","ask_amount","ask_price","bid_price","bid_amount"]
[1764843096087,6.94604837,143.97,143.94,0.67]
[1764843101504,0.1,143.99,143.96,2.59363565]
[1764843101811,0.1,143.99,143.97,0.67]
[1764843102490,27.56105808,143.99,143.95,0.67]
[1764843102891,3.15363565,143.98,143.94,0.72]
[1764843103284,3.15363565,143.98,143.93,9.5413097]
[1764843103285,3.15363565,143.98,143.95,0.72]
[1764843103494,2.59363565,143.98,143.95,0.72]
[1764843103995,6.9458915,143.97,143.95,0.72]
[1764843105284,6.94540908,143.98,143.94,0.72]
[1764843105490,2.59363565,143.97,143.94,0.72]
[1764843106993,6.94637399,143.96,143.94,0.72]
[1764843110387,28.36652873,143.97,143.94,0.72]
[1764843112210,28.92652873,143.97,143.93,0.72]
[1764843112911,4.05535683,143.96,143.93,0.72]
[1764843113510,4.05535683,143.95,143.9,18.66448481]
[1764843113819,4.05535683,143.94,143.91,0.72]
[1764843114693,6.94782185,143.93,143.91,0.72]
[1764843116917,11.00286113,143.94,143.91,0.72]
[1764843117114,6.9475043,143.94,143.91,0.72]
[1764843118422,4.05535683,143.94,143.91,0.72]
[1764843118719,4.05535683,143.92,143.87,0.72]
[1764843119013,4.05535683,143.89,143.87,0.72]
[1764843121400,11.00515142,143.89,143.87,0.72]
[1764843121597,6.94979459,143.89,143.84,18.66734466]
[1764843121797,4.05535683,143.88,143.87,0.72]
[1764843123107,11.00480977,143.9,143.87,0.72]
[1764843123421,4.05535683,143.89,143.87,0.72]
[1764843124625,4.05535683,143.89,143.86,0.72]
[1764843125009,4.05535683,143.87,143.84,7.66]
[1764843125319,4.05535683,143.87,143.84,8.38]
[1764843125525,4.05535683,143.87,143.85,0.72]
[1764843125923,4.05535683,143.86,143.84,7.66]
[1764843126104,4.05535683,143.86,143.84,8.38]
[1764843126430,4.05535683,143.86,143.81,27.51769415]
[1764843126431,0.56,143.86,143.82,0.72]
[1764843126601,4.05535683,143.85,143.82,0.72]
[1764843127002,4.05535683,143.86,143.82,0.72]
[1764843127220,6.95168578,143.85,143.82,0.72]
[1764843133835,11.00704261,143.85,143.82,0.72]
[1764843134032,4.05535683,143.84,143.82,0.72]
[1764843134240,4.05535683,143.83,143.82,0.72]
[1764843134940,4.05535683,143.84,143.82,0.72]
[1764843135241,4.05535683,143.84,143.81,0.2]
[1764843135242,6.95265243,143.83,143.81,0.2]
[1764843135441,6.95265243,143.83,143.81,0.89]
[1764843138435,51.05961293,143.89,143.81,0.89]
[1764843138436,4.05535683,143.86,143.82,0.69]
[1764843139322,4.05535683,143.85,143.82,0.69]
[1764843139955,0.56,143.86,143.82,0.69]
[1764843140154,4.05535683,143.85,143.82,0.69]
[1764843140328,11.00738288,143.85,143.82,0.69]
[1764843143231,4.05535683,143.84,143.82,0.69]
[1764843143427,4.05535683,143.84,143.81,0.2]
[1764843143633,4.05535683,143.83,143.81,0.89]
[1764843144244,4.05535683,143.83,143.82,0.69]
[1764843144450,11.00800926,143.83,143.82,0.69]
[1764843144745,11.00800926,143.83,143.81,0.2]
[1764843145854,11.00800926,143.83,143.81,0.89]
[1764843146730,11.00800926,143.83,143.81,0.2]
[1764843146954,4.05535683,143.82,143.81,0.2]
[1764843147751,11.00849269,143.82,143.81,0.2]
[1764843148257,6.95313586,143.82,143.81,0.2]
[1764843150352,11.00849269,143.82,143.81,0.2]
[1764843150652,6.95313586,143.82,143.81,0.2]
[1764843152860,11.00823535,143.83,143.81,0.89]
[1764843155153,6.95287852,143.83,143.81,0.89]
[1764843155961,6.95226136,143.84,143.82,0.69]
[1764843156263,4.05535683,143.86,143.82,4.74535683]
[1764843156643,4.05535683,143.86,143.83,0.69]
[1764843157863,6.95188787,143.85,143.83,0.69]
[1764843158370,11.00669817,143.86,143.83,0.69]
[1764843160253,28.38470456,143.86,143.83,0.69]
[1764843160454,28.38470456,143.86,143.82,0.69]
[1764843160455,4.05535683,143.85,143.82,0.69]
[1764843161254,24.32934773,143.86,143.82,4.74535683]
[1764843161561,28.38470456,143.86,143.82,0.69]
[1764843161869,28.38470456,143.86,143.83,0.7]
[1764843166673,11.00669817,143.86,143.83,0.7]
[1764843169862,4.61535683,143.85,143.81,0.2]
[1764843170062,4.05535683,143.84,143.82,0.72]
[1764843170269,4.05535683,143.85,143.82,0.72]
[1764843170579,2.59978167,143.85,143.82,0.72]
[1764843170781,9.5518978,143.85,143.82,0.72]
[1764843172176,6.95211613,143.85,143.82,10.27289518]
[1764843172479,6.95211613,143.85,143.83,0.72]
[1764843173260,6.95120255,143.86,143.83,0.72]
[1764843176682,9.5506558,143.87,143.83,0.72]
[1764843177067,9.5506558,143.87,143.83,7.67239522]
[1764843177274,10.1106558,143.87,143.83,0.72]
[1764843178010,6.95087413,143.87,143.83,7.67255403]
[1764843178488,6.95087413,143.87,143.84,0.72]
[1764843178987,6.95044364,143.88,143.84,10.27186088]
[1764843179299,2.59978167,143.89,143.85,2.59978167]
[1764843179300,6.94991462,143.89,143.85,2.59978167]
[1764843179596,6.94945791,143.9,143.86,2.59978167]
[1764843179894,6.94945791,143.9,143.86,3.31978167]
[1764843180079,6.94945791,143.9,143.87,0.72]
[1764843181613,9.54923958,143.9,143.87,0.72]
[1764843181781,6.94945791,143.9,143.87,0.72]
[1764843181968,6.94884817,143.91,143.87,10.27041665]
[1764843182288,2.59978167,143.91,143.87,7.67063498]
[1764843182492,9.54863952,143.91,143.88,0.72]
[1764843182872,9.54863952,143.91,143.85,6.95127894]
[1764843183184,2.59978167,143.89,143.86,0.72]
[1764843184565,6.94975328,143.89,143.86,0.72]
[1764843187165,9.54953495,143.89,143.86,0.72]
[1764843187786,9.54953495,143.89,143.86,7.67119673]
[1764843187993,6.94975328,143.89,143.86,7.67119673]
[1764843188188,9.54953495,143.89,143.87,0.72]
[1764843188388,9.54953495,143.89,143.83,6.9524662]
[1764843188389,3.15978167,143.88,143.83,6.9524662]
[1764843188678,2.59978167,143.87,143.84,0.72]
[1764843188884,6.95071939,143.87,143.84,0.72]
[1764843193026,6.95071939,143.87,143.84,3.31978167]
[1764843193496,6.95071939,143.87,143.85,0.67]
[1764843194107,6.94975328,143.89,143.85,7.62167439]
[1764843194290,6.94782185,143.93,143.88,2.59978167]
[1764843194487,17.36780004,143.95,143.91,2.59978167]
[1764843194676,6.94702839,143.95,143.92,2.59978167]
[1764843195003,6.94650551,143.96,143.93,2.59978167]
[1764843195570,6.94650551,143.96,143.93,3.26978167]
[1764843196003,7.50650551,143.96,143.93,0.67]
[1764843196499,6.94650551,143.96,143.93,0.67]
[1764843197882,9.54628718,143.96,143.93,0.67]
[1764843198103,10.10628718,143.96,143.93,0.67]
[1764843198518,10.10628718,143.96,143.91,0.67]
[1764843198799,2.59978167,143.94,143.89,19.57864567]
[1764843199006,2.59978167,143.94,143.89,3.26978167]
[1764843199201,3.15978167,143.94,143.9,0.67]
[1764843200408,10.10754586,143.94,143.9,0.67]
[1764843202511,9.60754586,143.94,143.9,0.67]
[1764843203412,2.59978167,143.93,143.9,0.67]
[1764843204003,24.87611211,143.94,143.9,0.67]
[1764843204213,2.59978167,143.93,143.9,0.67]
[1764843204688,9.54808628,143.92,143.88,2.59978167]
[1764843204897,9.54808628,143.92,143.89,0.67]
[1764843207313,10.10808628,143.92,143.88,0.67]
[1764843207994,9.54808628,143.92,143.88,0.67]
[1764843208194,10.10808628,143.92,143.88,0.67]
[1764843208397,9.54808628,143.92,143.88,0.67]
[1764843210004,9.54808628,143.92,143.88,7.62017878]
[1764843210210,9.54808628,143.92,143.89,0.67]
[1764843213006,26.91884781,143.92,143.89,0.67]
[1764843213206,27.47884781,143.92,143.89,0.67]
[1764843213402,2.59978167,143.91,143.89,0.67]
[1764843214328,6.94927032,143.9,143.89,0.67]
[1764843216396,9.54878227,143.91,143.89,0.67]
[1764843217031,6.9490006,143.91,143.89,0.67]
[1764843217514,9.54878227,143.91,143.89,0.67]
[1764843217830,6.9490006,143.91,143.89,0.67]
[1764843218033,51.04286439,143.96,143.89,0.67]
[1764843218034,2.59978167,143.94,143.89,0.67]
[1764843218322,16.868864,143.96,143.89,3.26978167]
[1764843218531,2.59978167,143.94,143.9,0.67]
[1764843220737,9.5475198,143.94,143.9,7.61923309]
[1764843220938,9.5475198,143.94,143.91,0.69]
[1764843221832,3.15978167,143.93,143.89,0.69]
[1764843222036,2.59978167,143.92,143.9,0.69]
[1764843223240,2.59978167,143.92,143.89,0.69]
[1764843223946,6.94878743,143.91,143.89,0.69]
[1764843226342,2.59978167,143.9,143.88,0.69]
[1764843226643,26.92053769,143.91,143.88,0.69]
[1764843228329,9.5485691,143.91,143.88,0.69]
[1764843232354,11.0076641,143.91,143.88,0.69]
[1764843234338,11.0076641,143.91,143.88,7.6401987]
[1764843234528,6.94878743,143.91,143.88,7.6401987]
[1764843234728,11.0076641,143.91,143.89,0.69]
[1764843236031,11.0076641,143.91,143.88,0.69]
[1764843236359,4.05887667,143.9,143.88,0.69]
[1764843237467,11.00846149,143.9,143.88,0.69]
[1764843241454,11.00846149,143.9,143.86,0.69]
[1764843241455,4.05887667,143.89,143.86,0.69]
[1764843241647,4.05887667,143.88,143.85,8.35]
[1764843244342,11.01017264,143.86,143.83,0.69]
[1764843245662,11.00959606,143.87,143.83,0.69]
[1764843246159,11.00959606,143.87,143.83,7.64253546]
[1764843246667,11.00959606,143.87,143.84,0.69]
[1764843246969,0.56,143.86,143.83,7.64253546]
[1764843247146,6.95131792,143.86,143.83,7.64253546]
[1764843247548,11.01019459,143.86,143.83,0.69]
[1764843248957,6.95131792,143.86,143.83,0.69]
[1764843251050,11.00982252,143.87,143.83,7.6424514]
[1764843251569,11.00982252,143.87,143.84,0.69]
[1764843252457,6.95094585,143.87,143.84,7.64204858]
[1764843252669,11.00934521,143.88,143.84,7.64204858]
[1764843252996,11.00934521,143.88,143.85,0.69]
[1764843254348,4.05887667,143.87,143.85,0.69]
[1764843254549,4.05887667,143.87,143.84,0.69]
[1764843255378,11.01000894,143.87,143.84,0.69]
[1764843262596,11.01008686,143.86,143.84,0.69]
[1764843262757,6.95121019,143.86,143.84,0.69]
[1764843263873,11.00979001,143.87,143.84,0.69]
[1764843265475,6.9513616,143.86,143.84,0.69]
[1764843267581,11.00982665,143.87,143.84,0.69]
[1764843270292,6.95033352,143.88,143.84,7.64197817]
[1764843270596,21.43156926,143.91,143.86,4.05887667]
[1764843270888,4.05887667,143.9,143.85,4.74887667]
[1764843271290,11.0083516,143.9,143.86,0.69]
[1764843272201,11.0083516,143.9,143.86,7.64097885]
[1764843272494,6.94947493,143.9,143.86,11.69985552]
[1764843272681,6.94947493,143.9,143.87,0.69]
[1764843275097,6.94947493,143.9,143.87,7.64063139]
[1764843275619,6.94947493,143.9,143.88,0.69]
[1764843278006,11.00779986,143.91,143.88,0.69]
[1764843278202,6.94892319,143.91,143.88,7.64018084]
[1764843278406,4.05887667,143.92,143.88,0.69]
[1764843278587,4.61887667,143.91,143.88,0.69]
[1764843278792,4.05887667,143.91,143.88,0.69]
[1764843279599,11.00813699,143.91,143.88,0.69]
[1764843279977,11.00740591,143.92,143.88,0.69]
[1764843280204,6.94852924,143.92,143.88,0.69]
[1764843280504,11.00740591,143.92,143.88,0.69]
[1764843281611,11.00740591,143.92,143.88,7.64007243]
[1764843281787,11.00740591,143.92,143.89,0.7]
[1764843286685,11.56740591,143.92,143.89,0.7]
[1764843286892,4.05887667,143.91,143.89,0.7]
[1764843289219,11.00778438,143.91,143.89,0.7]
[1764843290515,6.94890771,143.91,143.89,0.7]
[1764843296820,6.94890771,143.91,143.86,0.69]
[1764843296821,3.15721832,143.9,143.86,0.69]
[1764843297008,2.59721832,143.89,143.86,0.69]
[1764843297614,2.59721832,143.9,143.86,0.69]
[1764843298006,6.94975328,143.89,143.86,0.69]
[1764843299793,9.5469716,143.89,143.86,0.69]
[1764843300503,9.5469716,143.89,143.84,2.59721832]
[1764843300707,10.1069716,143.89,143.85,0.69]
[1764843301112,2.59721832,143.87,143.83,7.64249764]
[1764843301439,2.59721832,143.87,143.81,17.58366016]
[1764843301440,2.59721832,143.84,143.81,0.89]
[1764843301597,2.59721832,143.83,143.81,0.2]
[1764843302230,2.59721832,143.83,143.81,0.89]
[1764843303844,9.54948342,143.84,143.81,0.89]
[1764843305732,9.54948342,143.84,143.81,0.2]
[1764843305950,9.54948342,143.84,143.81,0.89]
[1764843306116,2.59721832,143.83,143.81,0.89]
[1764843307425,2.59721832,143.82,143.81,0.2]
[1764843308844,3.15721832,143.82,143.81,0.2]
[1764843309247,10.11035418,143.82,143.81,0.2]
[1764843313432,12.89460921,143.82,143.81,0.2]
[1764843314548,10.11035418,143.82,143.81,0.2]
[1764843316650,10.11035418,143.82,143.78,0.2]
[1764843316651,80.62196282,143.82,143.78,0.2]
[1764843316842,29.2949556,143.79,143.78,0.2]
[1764843317033,18.90608232,143.79,143.78,0.2]
[1764843317353,22.25111278,143.79,143.78,0.2]
[1764843318139,19.65389446,143.79,143.78,0.2]
[1764843318436,29.20569932,143.79,143.78,0.2]
[1764843319129,38.01564424,143.79,143.78,0.2]
[1764843319830,25.86066886,143.79,143.78,0.91]
[1764843320048,9.55180486,143.79,143.78,0.91]
[1764843320249,9.55180486,143.79,143.78,0.2]
[1764843321651,9.55180486,143.79,143.78,0.91]
[1764843321856,9.55180486,143.79,143.78,0.2]
[1764843322856,6.95458654,143.79,143.78,0.91]
[1764843323633,9.55180486,143.79,143.78,0.91]
[1764843323833,9.55180486,143.79,143.78,0.2]
[1764843324557,10.11180486,143.79,143.78,0.2]
[1764843325542,18.92174978,143.79,143.78,0.2]
[1764843325744,29.31062306,143.79,143.78,1e-08]
[1764843325941,81.47002217,143.79,143.74,0.2]
[1764843326139,2.59721832,143.75,143.74,0.2]
[1764843326931,9.55374005,143.75,143.74,0.2]
[1764843328230,9.55374005,143.75,143.74,0.91]
[1764843328447,9.55374005,143.75,143.74,0.2]
[1764843328858,10.11374005,143.75,143.74,0.2]
[1764843331258,12.89954636,143.75,143.74,0.2]
[1764843331771,12.89954636,143.75,143.72,0.2]
[1764843331772,9.36994492,143.74,143.72,1e-08]
[1764843331961,25.11880892,143.72,143.71,1e-08]
[1764843332142,25.11880892,143.72,143.65,0.71]
[1764843332143,38.10490052,143.72,143.69,1e-08]
[1764843332346,27.71602724,143.7,143.69,1e-08]
[1764843332650,28.27602724,143.7,143.69,1e-08]
[1764843332838,31.06299815,143.7,143.69,1e-08]
[1764843333043,28.27602724,143.7,143.69,1e-08]
[1764843333364,16.308864,143.7,143.69,1e-08]
[1764843333562,25.86502456,143.7,143.69,1e-08]
[1764843334452,26.42502456,143.7,143.69,1e-08]
[1764843334959,25.86502456,143.7,143.69,1e-08]
[1764843335542,24.35401537,143.72,143.69,0.71000001]
[1764843335866,2.59721832,143.7,143.69,1e-08]
[1764843337569,9.55616056,143.7,143.69,1e-08]
[1764843339642,25.86502456,143.7,143.69,1e-08]
[1764843339838,26.42502456,143.7,143.69,1e-08]
[1764843340654,35.23496948,143.7,143.69,1e-08]
[1764843342050,23.26780624,143.7,143.69,1e-08]
[1764843342247,25.86502456,143.7,143.69,1e-08]
[1764843342450,9.55616056,143.7,143.69,0.70000001]
[1764843342654,6.95894224,143.7,143.69,0.70000001]
[1764843343872,9.55587956,143.71,143.69,0.70000001]
[1764843344070,6.95866124,143.71,143.69,0.70000001]
[1764843346966,9.55587956,143.71,143.69,0.70000001]
[1764843347376,6.958052,143.72,143.69,0.70000001]
[1764843348357,9.55491196,143.73,143.69,7.65938773]
[1764843348868,2.59721832,143.72,143.7,0.67]
[1764843349272,6.958458,143.71,143.7,0.67]
[1764843350175,9.55530022,143.72,143.7,0.67]
[1764843351961,2.59721832,143.71,143.7,0.67]
[1764843352763,9.55530022,143.72,143.7,0.67]
[1764843353470,6.9580819,143.72,143.7,0.67]
[1764843354461,33.70054356,143.75,143.7,4.73852894]
[1764843354656,37.7690725,143.75,143.71,0.67]
[1764843355263,4.06852894,143.73,143.71,0.67]
[1764843357364,6.95797383,143.72,143.71,0.67]
[1764843359883,11.02650277,143.72,143.71,0.67]
[1764843360566,11.02650277,143.72,143.69,0.67000001]
[1764843361194,6.95797383,143.72,143.69,0.67000001]
[1764843361990,0.56,143.71,143.69,1e-08]
[1764843362177,4.06852894,143.7,143.69,1e-08]
[1764843362357,4.06852894,143.7,143.69,0.67000001]
[1764843363568,11.02747118,143.7,143.69,1e-08]
[1764843365283,4.06852894,143.7,143.69,1e-08]
[1764843366461,11.02747118,143.7,143.69,1e-08]
[1764843366666,11.02747118,143.7,143.69,0.67000001]
[1764843366973,11.02747118,143.7,143.69,1e-08]
[1764843367289,11.02747118,143.7,143.69,0.67000001]
[1764843367888,11.02747118,143.7,143.69,1e-08]
[1764843368200,11.02747118,143.7,143.69,0.67000001]
[1764843370385,17.39493459,143.72,143.69,0.67000001]
[1764843370386,24.35290842,143.72,143.69,0.67000001]
[1764843370574,24.350304,143.74,143.69,0.67000001]
[1764843370779,4.06852894,143.73,143.69,0.67000001]
[1764843370980,28.41883294,143.74,143.69,0.67000001]
[1764843371172,28.41883294,143.74,143.69,4.73852895]
[1764843371788,28.41883294,143.74,143.7,0.67]
[1764843372796,11.0263617,143.73,143.7,0.67]
[1764843373680,4.06852894,143.72,143.7,0.67]
[1764843373907,6.95783276,143.73,143.7,0.67]
[1764843374069,4.06852894,143.72,143.7,0.67]
[1764843375400,11.02650788,143.72,143.7,0.67]
[1764843377407,17.39286507,143.74,143.7,0.67]
[1764843377408,11.02612604,143.73,143.7,0.67]
[1764843380505,6.9575971,143.73,143.7,0.67]
[1764843380799,4.06852894,143.73,143.7,0.67]
[1764843381101,6.95739256,143.74,143.7,0.67]
[1764843381405,11.0259215,143.74,143.7,7.62893612]
[1764843381591,11.0259215,143.74,143.69,4.06852894]
[1764843381792,6.95739256,143.74,143.69,3.49902894]
[1764843381985,6.95739256,143.74,143.69,4.06852894]
[1764843382391,6.95739256,143.74,143.69,0.61027894]
[1764843382600,6.95739256,143.74,143.69,4.06852894]
[1764843383681,6.95739256,143.74,143.7,0.66]
[1764843385706,6.95739256,143.74,143.7,7.61887791]
[1764843385906,6.95739256,143.74,143.71,0.66]
[1764843388710,0.69,143.78,143.72,4.06852894]
[1764843388886,21.45506993,143.79,143.74,4.06852894]
[1764843389088,11.02311548,143.79,143.74,4.06852894]
[1764843389298,11.02311548,143.79,143.75,0.66]
[1764843389637,4.75852894,143.78,143.73,4.72852894]
[1764843389793,4.06852894,143.77,143.73,0.66]
[1764843390704,6.95603784,143.76,143.73,0.66]
[1764843391292,11.02456678,143.76,143.73,0.66]
[1764843391702,6.95603784,143.76,143.73,7.61745433]
[1764843392009,6.95603784,143.76,143.74,0.66]
[1764843392707,11.02456678,143.76,143.72,7.61778615]
[1764843393015,11.02456678,143.76,143.73,0.66]
[1764843393398,6.95603784,143.76,143.73,0.66]
[1764843396010,11.02456678,143.76,143.73,0.66]
[1764843396508,0.69,143.75,143.71,11.68693849]
[1764843396702,11.02456678,143.76,143.72,0.66]
[1764843396914,4.75852894,143.75,143.71,0.66]
[1764843397120,4.75852894,143.75,143.72,0.66]
[1764843397321,4.75852894,143.74,143.71,0.66]
[1764843397526,4.75852894,143.74,143.7,0.66]
[1764843397831,4.75852894,143.74,143.7,7.61888751]
[1764843398199,4.75852894,143.74,143.71,0.66]
[1764843398590,6.95748973,143.73,143.71,0.66]
[1764843399011,6.95748973,143.73,143.7,0.66]
[1764843400308,7.64721757,143.74,143.7,11.68736879]
[1764843400514,6.95721757,143.74,143.7,11.68736879]
[1764843400715,0.69,143.73,143.7,0.66]
[1764843400900,11.02574651,143.74,143.69,11.02766071]
[1764843401100,11.73574651,143.74,143.71,0.68]
[1764843402117,6.95671447,143.75,143.71,4.74852894]
[1764843402530,11.73524341,143.75,143.71,0.68]
[1764843402699,11.02524341,143.75,143.71,0.68]
[1764843402897,11.72524341,143.75,143.71,0.68]
[1764843405735,11.72524341,143.75,143.71,7.63836161]
[1764843406129,11.72524341,143.75,143.72,0.72]
[1764843409005,11.02524341,143.75,143.72,0.72]
[1764843409432,11.72524341,143.75,143.72,0.72]
[1764843410921,4.76852894,143.74,143.71,0.72]
[1764843411099,4.76852894,143.74,143.7,7.6787765]
[1764843411301,0.7,143.73,143.7,0.72]
[1764843412904,11.02599049,143.74,143.7,7.67892976]
[1764843413104,11.72599049,143.74,143.7,7.67892976]
[1764843413323,4.06852894,143.73,143.69,6.95937087]
[1764843413637,4.76852894,143.73,143.69,7.67937087]
[1764843413938,0.7,143.72,143.69,7.67937087]
[1764843414108,0.7,143.73,143.7,0.72]
[1764843414312,6.95746155,143.74,143.7,11.7473408]
[1764843414514,7.65746155,143.74,143.7,11.7473408]
[1764843414816,7.65746155,143.74,143.71,0.72]
[1764843415725,6.95746155,143.74,143.71,7.67843467]
[1764843416735,7.65670581,143.75,143.72,0.72]
[1764843419219,10.25928917,143.76,143.72,7.67791991]
[1764843419611,10.25928917,143.76,143.73,0.72]
[1764843420227,0.7,143.75,143.71,10.28141368]
[1764843420427,0.7,143.75,143.72,0.72]
[1764843422137,2.60316019,143.73,143.69,47.75005386]
[1764843422349,2.60316019,143.71,143.67,13.48274054]
[1764843422516,2.60316019,143.7,143.67,0.72]
[1764843422716,2.60316019,143.7,143.68,0.72]
[1764843423612,2.60316019,143.7,143.65,23.74688826]
[1764843423818,2.60316019,143.67,143.65,7.66]
[1764843424234,10.26449423,143.66,143.62,0.72]
[1764843424737,10.26449423,143.66,143.62,7.6827476]
[1764843425125,9.56449423,143.66,143.63,0.72]
[1764843425521,2.60316019,143.67,143.63,0.72]
[1764843425728,2.60316019,143.68,143.64,2.60316019]
[1764843426228,2.60316019,143.68,143.65,0.72]
[1764843426428,9.56210243,143.7,143.65,10.28434808]
[1764843426736,6.95853584,143.71,143.67,2.60316019]
[1764843427123,6.95853584,143.71,143.68,0.72]
[1764843427328,10.26169603,143.71,143.68,0.72]
[1764843427524,6.95748973,143.73,143.68,0.72]
[1764843427722,6.95748973,143.73,143.69,2.60316019]
[1764843427924,6.95748973,143.73,143.7,2.60316019]
[1764843428322,6.95748973,143.73,143.71,0.72]
[1764843429840,10.26064992,143.73,143.69,9.56251353]
[1764843430026,10.26064992,143.73,143.69,10.28251353]
[1764843430226,10.26064992,143.73,143.7,0.72]
[1764843430726,9.56064992,143.73,143.7,0.72]
[1764843430928,6.95748973,143.73,143.7,0.72]
[1764843431918,0.7,143.72,143.69,6.95935334]
[1764843432125,7.65805604,143.72,143.69,0.72]
[1764843432424,6.95805604,143.72,143.69,0.72]
[1764843432819,3.30316019,143.73,143.69,0.72]
[1764843432820,10.26085513,143.73,143.69,0.72]
[1764843433742,10.26085513,143.73,143.69,7.67936895]
[1764843434113,10.26085513,143.73,143.7,0.72]
[1764843436547,7.65769494,143.73,143.7,7.67890204]
[1764843436838,16.308864,143.76,143.7,10.28206223]
[1764843437027,26.5483562,143.76,143.71,3.32316019]
[1764843437230,3.28316019,143.75,143.71,0.72]
[1764843437620,2.60316019,143.75,143.71,0.72]
[1764843437818,3.28316019,143.75,143.71,0.72]
[1764843438738,6.9570057,143.74,143.71,0.72]
[1764843438920,7.6370057,143.74,143.71,0.72]
[1764843439239,6.9570057,143.74,143.71,7.67840478]
[1764843439621,6.9570057,143.74,143.71,10.28156497]
[1764843439920,10.23985242,143.75,143.71,10.28156497]
[1764843440140,7.63669223,143.75,143.72,0.72]
[1764843441837,7.63669223,143.75,143.72,3.32316019]
[1764843442820,6.95669223,143.75,143.73,0.72]
[1764843443042,7.63669223,143.75,143.72,3.32316019]
[1764843443253,9.55920932,143.76,143.73,0.72]
[1764843443427,10.23920932,143.76,143.72,6.95757023]
[1764843443633,10.23920932,143.76,143.72,7.67757023]
[1764843443830,6.95604913,143.76,143.72,9.56073042]
[1764843444029,6.95604913,143.76,143.73,0.72]
[1764843444030,7.63604913,143.76,143.73,0.72]
[1764843445860,6.95575382,143.77,143.73,10.28062903]
[1764843446351,6.95575382,143.77,143.74,0.72]
[1764843451543,7.63575382,143.77,143.74,0.72]
[1764843456858,0.68,143.76,143.73,0.72]
[1764843457760,10.23891401,143.77,143.73,0.72]
[1764843460458,3.28316019,143.76,143.72,6.95758465]
[1764843460654,3.28316019,143.76,143.7,7.61872236]
[1764843460655,2.60316019,143.75,143.7,7.61872236]
[1764843460959,2.60316019,143.74,143.7,7.61872236]
[1764843461148,3.27316019,143.75,143.71,7.61841791]
[1764843461543,3.27316019,143.75,143.72,0.66]
[1764843462362,10.22999375,143.75,143.72,0.66]
[1764843464063,9.55999375,143.75,143.71,0.66]
[1764843464265,3.32316019,143.74,143.71,0.66]
[1764843465267,10.28025155,143.74,143.71,0.66]
[1764843466169,7.67709136,143.74,143.71,0.66]
[1764843468954,0.72,143.73,143.71,0.66]
[1764843469349,10.28025155,143.74,143.71,0.66]
[1764843470859,6.95709136,143.74,143.71,10.22155155]
[1764843471063,6.95709136,143.74,143.72,0.66]
[1764843472554,2.60316019,143.77,143.72,10.22103463]
[1764843473056,3.32316019,143.77,143.73,0.66]
[1764843473255,20.70885216,143.8,143.75,2.60316019]
[1764843473675,20.70885216,143.8,143.76,0.66]
[1764843473879,7.67423131,143.8,143.76,0.66]
[1764843474081,7.67423131,143.8,143.76,3.26316019]
[1764843474376,7.67423131,143.8,143.76,10.21907442]
[1764843474593,6.95423131,143.8,143.76,10.21907442]
[1764843474766,7.67423131,143.8,143.77,0.66]
[1764843476566,10.27643634,143.82,143.77,10.21864489]
[1764843476988,10.27643634,143.82,143.78,0.66]
[1764843477384,26.58487482,143.83,143.78,3.26316019]
[1764843477890,6.95285063,143.83,143.79,3.26316019]
[1764843478374,4.7820768,143.85,143.8,11.67617972]
[1764843478880,4.7820768,143.85,143.81,0.66]
[1764843479075,0.72,143.84,143.81,0.66]
[1764843479575,11.73458346,143.84,143.81,0.66]
[1764843480678,7.67250666,143.84,143.81,0.66]
[1764843480874,11.73458346,143.84,143.81,0.66]
[1764843484601,4.7820768,143.83,143.78,4.7220768]
[1764843484894,4.0620768,143.79,143.74,0.66]
[1764843485075,4.0620768,143.77,143.74,7.61691524]
[1764843485397,4.0620768,143.78,143.74,7.61691524]
[1764843485889,4.7820768,143.78,143.75,0.66]
[1764843486480,11.73719796,143.78,143.75,0.66]
[1764843489996,4.0620768,143.79,143.75,7.61640841]
[1764843490204,4.0620768,143.79,143.75,11.67848521]